{"text_format":"3","workbook":"xlsx","n_sheets":14,"sheets":["пояснения","резюме","янр","фев","мар","апр","май","юни","юли","авг","сеп","окт","ное","дек"],"not_rendered":{"charts":1,"defined_names":27},"read":"whole","date_system":"1900"}

{"sheet":"пояснения","index":0,"n_rows":18,"n_cols":1,"rows_kept":18}
["Пояснения относно шаблоните"]
["Има ли лесен начин за прескачане между листа с резюме \"Тенденции в разходите\" и подробностите за месечните разходи?"]
["За да стигнете бързо до разходите за конкретен месец, щракнете върху съответната връзка за навигация над диаграмата, като например връзка за навигация \tЯнр в B2. След това, за да се върнете в работния лист \"Тенденции в разходите\", щракнете върху връзката за навигация Резюме в D1. "]
["За да се върнете към този работен лист с пояснения, в работния лист \"Резюме\" изберете N2. От всички работни листове за месеците изберете E1."]
["Как да добавя нов тип разходи в \"Резюме на разходите\" или нови месечни разходи?"]
["\"Резюме на разходите\" под диаграмата и подробните данни за разходите за всеки месец са таблици на Excel. За да добавите нови редове в която и да е таблица на Excel, направете едно от следните неща:"]
[{"$f":"ROW(A1)&\". Ако таблицата няма ред за общи суми, започнете да въвеждате под таблицата, и той автоматично ще се разгъне, когато натиснете клавиша Enter или Tab.\"","v":"1. Ако таблицата няма ред за общи суми, започнете да въвеждате под таблицата, и той автоматично ще се разгъне, когато натиснете клавиша Enter или Tab."}]
[{"$f":"ROW(A2)&\". Поставете показалеца на клетка в последната клетка над реда за общи суми, като например общата сума за последен разход, а след това натиснете клавиша Tab.\"","v":"2. Поставете показалеца на клетка в последната клетка над реда за общи суми, като например общата сума за последен разход, а след това натиснете клавиша Tab."}]
[{"$f":"ROW(A3)&\". Щракнете с десния бутон в таблицата и в изскачащото меню посочете \"\"Вмъкване\"\" и след това щракнете върху \"\"Редове за таблица отгоре\"\" или \"\"Редове за таблица отдолу\"\".\"","v":"3. Щракнете с десния бутон в таблицата и в изскачащото меню посочете \"Вмъкване\" и след това щракнете върху \"Редове за таблица отгоре\" или \"Редове за таблица отдолу\"."}]
[{"$f":"ROW(A4)&\". В долния десен ъгъл на таблицата поставете показалеца на мишката върху манипулатора за оразмеряване на таблица и плъзнете, за да увеличите броя на наличните редове на таблицата.\"","v":"4. В долния десен ъгъл на таблицата поставете показалеца на мишката върху манипулатора за оразмеряване на таблица и плъзнете, за да увеличите броя на наличните редове на таблицата."}]
["Въведете разхода в работния лист резюме в таблицата за обобщение на разходите в колоната Разходи."]
["Добавете сумата на разхода за всеки тип разход в работния лист за месеца, за който се отнася разходът."]
["например: \"Разход 1\" е направен в месеците от януари до юни и декември. "]
[{"$f":"ROW(A1)&\". В работния лист \"\"резюме\"\" е въведено \"\"Разход 1\"\" под \"\"Разходи\"\" в таблицата за обобщение на разходите (като заглавие за типа разход)\"","v":"1. В работния лист \"резюме\" е въведено \"Разход 1\" под \"Разходи\" в таблицата за обобщение на разходите (като заглавие за типа разход)"}]
[{"$f":"ROW(A2)&\". За всеки месец, за който се появява разходът, въведете сумата за разхода в работния лист за съответния месец.\"","v":"2. За всеки месец, за който се появява разходът, въведете сумата за разхода в работния лист за съответния месец."}]
[{"$f":"ROW(A3)&\". Типът разход от работния лист за обобщение на разходите създава списък с категории за колоната \"\"Категория\"\" в работния лист за всеки месец.\"","v":"3. Типът разход от работния лист за обобщение на разходите създава списък с категории за колоната \"Категория\" в работния лист за всеки месец."}]
[{"$f":"ROW(A4)&\". Използвайте списъка с категории в колоната \"\"Категория\"\", за да изберете съответния тип разходи за въведената сума на разхода\"","v":"4. Използвайте списъка с категории в колоната \"Категория\", за да изберете съответния тип разходи за въведената сума на разхода"}]
[{"$f":"ROW(A5)&\". За да добавите нови разходи за всеки месец, добавете нов ред в таблицата за обобщение на разходите в работния лист \"\"резюме\"\" и след това въведете съответните подробни данни за разхода в работния лист за месеца, за който се отнася.\"","v":"5. За да добавите нови разходи за всеки месец, добавете нов ред в таблицата за обобщение на разходите в работния лист \"резюме\" и след това въведете съответните подробни данни за разхода в работния лист за месеца, за който се отнася."}]

{"sheet":"резюме","index":1,"n_rows":10,"n_cols":15,"rows_kept":10}
["ТЕНДЕНЦИИ В РАЗХОДИТЕ"]
[null,"Янр","Фев","Мар","Апр","Май","Юни","Юли","Авг","Сеп","Окт","Ное","Дек","Пояснения"]
[]
["Разходи","Янр","Фев","Мар","Апр","Май","Юни","Юли","Авг","Сеп","Окт","Ное","Дек","Общо","Тенденция"]
["Разход 1",{"$f":"SUMIFS(ExpJan[Сума],ExpJan[Категория],ExpenseSummary[Разходи])","v":{"v":33,"d":"33.00"}},{"$f":"SUMIFS(ExpFeb[Сума],ExpFeb[Категория],ExpenseSummary[Разходи])","v":{"v":375,"d":"375.00"}},{"$f":"SUMIFS(ExpMar[Сума],ExpMar[Категория],ExpenseSummary[Разходи])","v":{"v":33,"d":"33.00"}},{"$f":"SUMIFS(ExpApr[Сума],ExpApr[Категория],ExpenseSummary[Разходи])","v":{"v":45,"d":"45.00"}},{"$f":"SUMIFS(ExpMay[Сума],ExpMay[Категория],ExpenseSummary[Разходи])","v":{"v":375,"d":"375.00"}},{"$f":"SUMIFS(ExpJun[Сума],ExpJun[Категория],ExpenseSummary[Разходи])","v":{"v":201,"d":"201.00"}},{"$f":"SUMIFS(ExpJul[Сума],ExpJul[Категория],ExpenseSummary[Разходи])","v":{"v":0,"d":"0.00"}},{"$f":"SUMIFS(ExpAug[Сума],ExpAug[Категория],ExpenseSummary[Разходи])","v":{"v":0,"d":"0.00"}},{"$f":"SUMIFS(ExpSep[Сума],ExpSep[Категория],ExpenseSummary[Разходи])","v":{"v":0,"d":"0.00"}},{"$f":"SUMIFS(ExpOct[Сума],ExpOct[Категория],ExpenseSummary[Разходи])","v":{"v":0,"d":"0.00"}},{"$f":"SUMIFS(ExpNov[Сума],ExpNov[Категория],ExpenseSummary[Разходи])","v":{"v":0,"d":"0.00"}},{"$f":"SUMIFS(ExpDec[Сума],ExpDec[Категория],ExpenseSummary[Разходи])","v":{"v":201,"d":"201.00"}},{"$f":"SUM(ExpenseSummary[[#This Row],[Янр]:[Дек]])","v":{"v":1263,"d":"1,263.00"}}]
["Разход 2",{"$f":"SUMIFS(ExpJan[Сума],ExpJan[Категория],ExpenseSummary[Разходи])","v":{"v":238,"d":"238.00"}},{"$f":"SUMIFS(ExpFeb[Сума],ExpFeb[Категория],ExpenseSummary[Разходи])","v":{"v":238,"d":"238.00"}},{"$f":"SUMIFS(ExpMar[Сума],ExpMar[Категория],ExpenseSummary[Разходи])","v":{"v":238,"d":"238.00"}},{"$f":"SUMIFS(ExpApr[Сума],ExpApr[Категория],ExpenseSummary[Разходи])","v":{"v":123,"d":"123.00"}},{"$f":"SUMIFS(ExpMay[Сума],ExpMay[Категория],ExpenseSummary[Разходи])","v":{"v":111,"d":"111.00"}},{"$f":"SUMIFS(ExpJun[Сума],ExpJun[Категория],ExpenseSummary[Разходи])","v":{"v":98,"d":"98.00"}},{"$f":"SUMIFS(ExpJul[Сума],ExpJul[Категория],ExpenseSummary[Разходи])","v":{"v":0,"d":"0.00"}},{"$f":"SUMIFS(ExpAug[Сума],ExpAug[Категория],ExpenseSummary[Разходи])","v":{"v":0,"d":"0.00"}},{"$f":"SUMIFS(ExpSep[Сума],ExpSep[Категория],ExpenseSummary[Разходи])","v":{"v":0,"d":"0.00"}},{"$f":"SUMIFS(ExpOct[Сума],ExpOct[Категория],ExpenseSummary[Разходи])","v":{"v":0,"d":"0.00"}},{"$f":"SUMIFS(ExpNov[Сума],ExpNov[Категория],ExpenseSummary[Разходи])","v":{"v":0,"d":"0.00"}},{"$f":"SUMIFS(ExpDec[Сума],ExpDec[Категория],ExpenseSummary[Разходи])","v":{"v":440,"d":"440.00"}},{"$f":"SUM(ExpenseSummary[[#This Row],[Янр]:[Дек]])","v":{"v":1486,"d":"1,486.00"}}]
["Разход 3",{"$f":"SUMIFS(ExpJan[Сума],ExpJan[Категория],ExpenseSummary[Разходи])","v":{"v":110,"d":"110.00"}},{"$f":"SUMIFS(ExpFeb[Сума],ExpFeb[Категория],ExpenseSummary[Разходи])","v":{"v":110,"d":"110.00"}},{"$f":"SUMIFS(ExpMar[Сума],ExpMar[Категория],ExpenseSummary[Разходи])","v":{"v":110,"d":"110.00"}},{"$f":"SUMIFS(ExpApr[Сума],ExpApr[Категория],ExpenseSummary[Разходи])","v":{"v":125,"d":"125.00"}},{"$f":"SUMIFS(ExpMay[Сума],ExpMay[Категория],ExpenseSummary[Разходи])","v":{"v":333,"d":"333.00"}},{"$f":"SUMIFS(ExpJun[Сума],ExpJun[Категория],ExpenseSummary[Разходи])","v":{"v":122,"d":"122.00"}},{"$f":"SUMIFS(ExpJul[Сума],ExpJul[Категория],ExpenseSummary[Разходи])","v":{"v":0,"d":"0.00"}},{"$f":"SUMIFS(ExpAug[Сума],ExpAug[Категория],ExpenseSummary[Разходи])","v":{"v":0,"d":"0.00"}},{"$f":"SUMIFS(ExpSep[Сума],ExpSep[Категория],ExpenseSummary[Разходи])","v":{"v":0,"d":"0.00"}},{"$f":"SUMIFS(ExpOct[Сума],ExpOct[Категория],ExpenseSummary[Разходи])","v":{"v":0,"d":"0.00"}},{"$f":"SUMIFS(ExpNov[Сума],ExpNov[Категория],ExpenseSummary[Разходи])","v":{"v":0,"d":"0.00"}},{"$f":"SUMIFS(ExpDec[Сума],ExpDec[Категория],ExpenseSummary[Разходи])","v":{"v":122,"d":"122.00"}},{"$f":"SUM(ExpenseSummary[[#This Row],[Янр]:[Дек]])","v":{"v":1032,"d":"1,032.00"}}]
["Разход 4",{"$f":"SUMIFS(ExpJan[Сума],ExpJan[Категория],ExpenseSummary[Разходи])","v":{"v":426,"d":"426.00"}},{"$f":"SUMIFS(ExpFeb[Сума],ExpFeb[Категория],ExpenseSummary[Разходи])","v":{"v":84,"d":"84.00"}},{"$f":"SUMIFS(ExpMar[Сума],ExpMar[Категория],ExpenseSummary[Разходи])","v":{"v":84,"d":"84.00"}},{"$f":"SUMIFS(ExpApr[Сума],ExpApr[Категория],ExpenseSummary[Разходи])","v":{"v":426,"d":"426.00"}},{"$f":"SUMIFS(ExpMay[Сума],ExpMay[Категория],ExpenseSummary[Разходи])","v":{"v":125,"d":"125.00"}},{"$f":"SUMIFS(ExpJun[Сума],ExpJun[Категория],ExpenseSummary[Разходи])","v":{"v":187,"d":"187.00"}},{"$f":"SUMIFS(ExpJul[Сума],ExpJul[Категория],ExpenseSummary[Разходи])","v":{"v":0,"d":"0.00"}},{"$f":"SUMIFS(ExpAug[Сума],ExpAug[Категория],ExpenseSummary[Разходи])","v":{"v":0,"d":"0.00"}},{"$f":"SUMIFS(ExpSep[Сума],ExpSep[Категория],ExpenseSummary[Разходи])","v":{"v":0,"d":"0.00"}},{"$f":"SUMIFS(ExpOct[Сума],ExpOct[Категория],ExpenseSummary[Разходи])","v":{"v":0,"d":"0.00"}},{"$f":"SUMIFS(ExpNov[Сума],ExpNov[Категория],ExpenseSummary[Разходи])","v":{"v":0,"d":"0.00"}},{"$f":"SUMIFS(ExpDec[Сума],ExpDec[Категория],ExpenseSummary[Разходи])","v":{"v":187,"d":"187.00"}},{"$f":"SUM(ExpenseSummary[[#This Row],[Янр]:[Дек]])","v":{"v":1519,"d":"1,519.00"}}]
["Разход 5",{"$f":"SUMIFS(ExpJan[Сума],ExpJan[Категория],ExpenseSummary[Разходи])","v":{"v":54,"d":"54.00"}},{"$f":"SUMIFS(ExpFeb[Сума],ExpFeb[Категория],ExpenseSummary[Разходи])","v":{"v":54,"d":"54.00"}},{"$f":"SUMIFS(ExpMar[Сума],ExpMar[Категория],ExpenseSummary[Разходи])","v":{"v":109,"d":"109.00"}},{"$f":"SUMIFS(ExpApr[Сума],ExpApr[Категория],ExpenseSummary[Разходи])","v":{"v":98,"d":"98.00"}},{"$f":"SUMIFS(ExpMay[Сума],ExpMay[Категория],ExpenseSummary[Разходи])","v":{"v":33,"d":"33.00"}},{"$f":"SUMIFS(ExpJun[Сума],ExpJun[Категория],ExpenseSummary[Разходи])","v":{"v":441,"d":"441.00"}},{"$f":"SUMIFS(ExpJul[Сума],ExpJul[Категория],ExpenseSummary[Разходи])","v":{"v":0,"d":"0.00"}},{"$f":"SUMIFS(ExpAug[Сума],ExpAug[Категория],ExpenseSummary[Разходи])","v":{"v":0,"d":"0.00"}},{"$f":"SUMIFS(ExpSep[Сума],ExpSep[Категория],ExpenseSummary[Разходи])","v":{"v":0,"d":"0.00"}},{"$f":"SUMIFS(ExpOct[Сума],ExpOct[Категория],ExpenseSummary[Разходи])","v":{"v":0,"d":"0.00"}},{"$f":"SUMIFS(ExpNov[Сума],ExpNov[Категория],ExpenseSummary[Разходи])","v":{"v":0,"d":"0.00"}},{"$f":"SUMIFS(ExpDec[Сума],ExpDec[Категория],ExpenseSummary[Разходи])","v":{"v":99,"d":"99.00"}},{"$f":"SUM(ExpenseSummary[[#This Row],[Янр]:[Дек]])","v":{"v":888,"d":"888.00"}}]
["Общо",{"$f":"SUBTOTAL(109,ExpenseSummary[Янр])","v":{"v":861,"d":"861.00"}},{"$f":"SUBTOTAL(109,ExpenseSummary[Фев])","v":{"v":861,"d":"861.00"}},{"$f":"SUBTOTAL(109,ExpenseSummary[Мар])","v":{"v":574,"d":"574.00"}},{"$f":"SUBTOTAL(109,ExpenseSummary[Апр])","v":{"v":817,"d":"817.00"}},{"$f":"SUBTOTAL(109,ExpenseSummary[Май])","v":{"v":977,"d":"977.00"}},{"$f":"SUBTOTAL(109,ExpenseSummary[Юни])","v":{"v":1049,"d":"1,049.00"}},{"$f":"SUBTOTAL(109,ExpenseSummary[Юли])","v":{"v":0,"d":"0.00"}},{"$f":"SUBTOTAL(109,ExpenseSummary[Авг])","v":{"v":0,"d":"0.00"}},{"$f":"SUBTOTAL(109,ExpenseSummary[Сеп])","v":{"v":0,"d":"0.00"}},{"$f":"SUBTOTAL(109,ExpenseSummary[Окт])","v":{"v":0,"d":"0.00"}},{"$f":"SUBTOTAL(109,ExpenseSummary[Ное])","v":{"v":0,"d":"0.00"}},{"$f":"SUBTOTAL(109,ExpenseSummary[Дек])","v":{"v":1049,"d":"1,049.00"}},{"$f":"SUBTOTAL(109,ExpenseSummary[Общо])","v":{"v":6188,"d":"6,188.00"}}]

{"sheet":"янр","index":2,"n_rows":9,"n_cols":5,"rows_kept":9,"merged":[[0,0,0,2]]}
["РАЗХОДИ ЗА ЯНУАРИ",null,null,"Резюме","Пояснения"]
["Дата","Поръчка №","Сума","Категория","Описание"]
[{"$f":"DATE(YEAR(TODAY()),1,4)","v":"2017-01-04"},"A-12345",{"v":33,"d":"33.00"},"Разход 1","Доставки"]
[{"$f":"DATE(YEAR(TODAY()),1,5)","v":"2017-01-05"},"A-12346",{"v":238,"d":"238.00"},"Разход 2"]
[null,null,{"v":342,"d":"342.00"},"Разход 4"]
[null,null,{"v":110,"d":"110.00"},"Разход 3"]
[null,null,{"v":84,"d":"84.00"},"Разход 4"]
[null,null,{"v":54,"d":"54.00"},"Разход 5"]
["Общо",null,{"$f":"SUBTOTAL(109,ExpJan[Сума])","v":{"v":861,"d":"861.00"}}]

{"sheet":"фев","index":3,"n_rows":9,"n_cols":5,"rows_kept":9,"merged":[[0,0,0,2]]}
["РАЗХОДИ ЗА ФЕВРУАРИ",null,null,"Резюме","Пояснения"]
["Дата","Поръчка №","Сума","Категория","Описание"]
[{"$f":"DATE(YEAR(TODAY()),2,3)","v":"2017-02-03"},"A-12345",{"v":33,"d":"33.00"},"Разход 1","Доставки"]
[{"$f":"DATE(YEAR(TODAY()),2,4)","v":"2017-02-04"},"A-12346",{"v":238,"d":"238.00"},"Разход 2"]
[null,null,{"v":342,"d":"342.00"},"Разход 1"]
[null,null,{"v":110,"d":"110.00"},"Разход 3"]
[null,null,{"v":84,"d":"84.00"},"Разход 4"]
[null,null,{"v":54,"d":"54.00"},"Разход 5"]
["Общо",null,{"$f":"SUBTOTAL(109,ExpFeb[Сума])","v":{"v":861,"d":"861.00"}}]

{"sheet":"мар","index":4,"n_rows":9,"n_cols":5,"rows_kept":9,"merged":[[0,0,0,2]]}
["РАЗХОДИ ЗА МАРТ",null,null,"Резюме","Пояснения"]
["Дата","Поръчка №","Сума","Категория","Описание"]
[{"$f":"DATE(YEAR(TODAY()),3,5)","v":"2017-03-05"},"A-12345",{"v":33,"d":"33.00"},"Разход 1","Доставки"]
[{"$f":"DATE(YEAR(TODAY()),3,6)","v":"2017-03-06"},"A-12346",{"v":238,"d":"238.00"},"Разход 2"]
[null,null,{"v":55,"d":"55.00"},"Разход 5"]
[null,null,{"v":110,"d":"110.00"},"Разход 3"]
[null,null,{"v":84,"d":"84.00"},"Разход 4"]
[null,null,{"v":54,"d":"54.00"},"Разход 5"]
["Общо",null,{"$f":"SUBTOTAL(109,ExpMar[Сума])","v":{"v":574,"d":"574.00"}}]

{"sheet":"апр","index":5,"n_rows":9,"n_cols":5,"rows_kept":9,"merged":[[0,0,0,2]]}
["РАЗХОДИ ЗА АПРИЛ",null,null,"Резюме","Пояснения"]
["Дата","Поръчка №","Сума","Категория","Описание"]
[{"$f":"DATE(YEAR(TODAY()),4,4)","v":"2017-04-04"},"A-12345",{"v":45,"d":"45.00"},"Разход 1","Доставки"]
[{"$f":"DATE(YEAR(TODAY()),4,8)","v":"2017-04-08"},"A-12346",{"v":123,"d":"123.00"},"Разход 2"]
[null,null,{"v":342,"d":"342.00"},"Разход 4"]
[null,null,{"v":125,"d":"125.00"},"Разход 3"]
[null,null,{"v":84,"d":"84.00"},"Разход 4"]
[null,null,{"v":98,"d":"98.00"},"Разход 5"]
["Общо",null,{"$f":"SUBTOTAL(109,ExpApr[Сума])","v":{"v":817,"d":"817.00"}}]

{"sheet":"май","index":6,"n_rows":9,"n_cols":5,"rows_kept":9,"merged":[[0,0,0,2]]}
["РАЗХОДИ ЗА МАЙ",null,null,"Резюме","Пояснения"]
["Дата","Поръчка №","Сума","Категория","Описание"]
[{"$f":"DATE(YEAR(TODAY()),5,3)","v":"2017-05-03"},"A-12345",{"v":33,"d":"33.00"},"Разход 1","Доставки"]
[{"$f":"DATE(YEAR(TODAY()),5,8)","v":"2017-05-08"},"A-12346",{"v":111,"d":"111.00"},"Разход 2"]
[null,null,{"v":342,"d":"342.00"},"Разход 1"]
[null,null,{"v":333,"d":"333.00"},"Разход 3"]
[null,null,{"v":125,"d":"125.00"},"Разход 4"]
[null,null,{"v":33,"d":"33.00"},"Разход 5"]
["Общо",null,{"$f":"SUBTOTAL(109,ExpMay[Сума])","v":{"v":977,"d":"977.00"}}]

{"sheet":"юни","index":7,"n_rows":9,"n_cols":5,"rows_kept":9,"merged":[[0,0,0,2]]}
["РАЗХОДИ ЗА ЮНИ",null,null,"Резюме","Пояснения"]
["Дата","Поръчка №","Сума","Категория","Описание"]
[{"$f":"DATE(YEAR(TODAY()),6,7)","v":"2017-06-07"},"A-12345",{"v":201,"d":"201.00"},"Разход 1","Доставки"]
[{"$f":"DATE(YEAR(TODAY()),6,8)","v":"2017-06-08"},"A-12346",{"v":98,"d":"98.00"},"Разход 2"]
[null,null,{"v":342,"d":"342.00"},"Разход 5"]
[null,null,{"v":122,"d":"122.00"},"Разход 3"]
[null,null,{"v":187,"d":"187.00"},"Разход 4"]
[null,null,{"v":99,"d":"99.00"},"Разход 5"]
["Общо",null,{"$f":"SUBTOTAL(109,ExpJun[Сума])","v":{"v":1049,"d":"1,049.00"}}]

{"sheet":"юли","index":8,"n_rows":9,"n_cols":5,"rows_kept":9,"merged":[[0,0,0,2]]}
["РАЗХОДИ ЗА ЮЛИ",null,null,"Резюме","Пояснения"]
["Дата","Поръчка №","Сума","Категория","Описание"]
[{"$f":"DATE(YEAR(TODAY()),7,9)","v":"2017-07-09"},"A-12345",null,"Разход 1","Доставки"]
[{"$f":"DATE(YEAR(TODAY()),7,14)","v":"2017-07-14"},"A-12346",null,"Разход 2"]
[{"$nulls":3},"Разход 2"]
[{"$nulls":3},"Разход 3"]
[{"$nulls":3},"Разход 4"]
[{"$nulls":3},"Разход 5"]
["Общо",null,{"$f":"SUBTOTAL(109,ExpJul[Сума])","v":{"v":0,"d":"0.00"}}]

{"sheet":"авг","index":9,"n_rows":9,"n_cols":5,"rows_kept":9,"merged":[[0,0,0,2]]}
["РАЗХОДИ ЗА АВГУСТ",null,null,"Резюме","Пояснения"]
["Дата","Поръчка №","Сума","Категория","Описание"]
[{"$f":"DATE(YEAR(TODAY()),8,8)","v":"2017-08-08"},"A-12345",null,"Разход 1","Доставки"]
[{"$f":"DATE(YEAR(TODAY()),8,9)","v":"2017-08-09"},"A-12346",null,"Разход 2"]
[{"$nulls":3},"Разход 2"]
[{"$nulls":3},"Разход 3"]
[{"$nulls":3},"Разход 4"]
[{"$nulls":3},"Разход 5"]
["Общо",null,{"$f":"SUBTOTAL(109,ExpAug[Сума])","v":{"v":0,"d":"0.00"}}]

{"sheet":"сеп","index":10,"n_rows":9,"n_cols":5,"rows_kept":9,"merged":[[0,0,0,2]]}
["РАЗХОДИ ЗА СЕПТЕМВРИ",null,null,"Резюме","Пояснения"]
["Дата","Поръчка №","Сума","Категория","Описание"]
[{"$f":"DATE(YEAR(TODAY()),9,9)","v":"2017-09-09"},"A-12345",null,"Разход 1","Доставки"]
[{"$f":"DATE(YEAR(TODAY()),9,15)","v":"2017-09-15"},"A-12346",null,"Разход 2"]
[{"$nulls":3},"Разход 2"]
[{"$nulls":3},"Разход 3"]
[{"$nulls":3},"Разход 4"]
[{"$nulls":3},"Разход 5"]
["Общо",null,{"$f":"SUBTOTAL(109,ExpSep[Сума])","v":{"v":0,"d":"0.00"}}]

{"sheet":"окт","index":11,"n_rows":9,"n_cols":5,"rows_kept":9,"merged":[[0,0,0,2]]}
["РАЗХОДИ ЗА ОКТОМВРИ",null,null,"Резюме","Пояснения"]
["Дата","Поръчка №","Сума","Категория","Описание"]
[{"$f":"DATE(YEAR(TODAY()),10,10)","v":"2017-10-10"},"A-12345",null,"Разход 1","Доставки"]
[{"$f":"DATE(YEAR(TODAY()),10,21)","v":"2017-10-21"},"A-12346",null,"Разход 2"]
[{"$nulls":3},"Разход 2"]
[{"$nulls":3},"Разход 3"]
[{"$nulls":3},"Разход 4"]
[{"$nulls":3},"Разход 5"]
["Общо",null,{"$f":"SUBTOTAL(109,ExpOct[Сума])","v":{"v":0,"d":"0.00"}}]

{"sheet":"ное","index":12,"n_rows":9,"n_cols":5,"rows_kept":9,"merged":[[0,0,0,2]]}
["РАЗХОДИ ЗА НОЕМВРИ",null,null,"Резюме","Пояснения"]
["Дата","Поръчка №","Сума","Категория","Описание"]
[{"$f":"DATE(YEAR(TODAY()),11,14)","v":"2017-11-14"},"A-12345",null,"Разход 1","Доставки"]
[{"$f":"DATE(YEAR(TODAY()),11,21)","v":"2017-11-21"},"A-12346",null,"Разход 2"]
[{"$nulls":3},"Разход 2"]
[{"$nulls":3},"Разход 3"]
[{"$nulls":3},"Разход 4"]
[{"$nulls":3},"Разход 5"]
["Общо",null,{"$f":"SUBTOTAL(109,ExpNov[Сума])","v":{"v":0,"d":"0.00"}}]

{"sheet":"дек","index":13,"n_rows":9,"n_cols":5,"rows_kept":9,"merged":[[0,0,0,2]]}
["РАЗХОДИ ЗА ДЕКЕМВРИ",null,null,"Резюме","Пояснения"]
["Дата","Поръчка №","Сума","Категория","Описание"]
[{"$f":"DATE(YEAR(TODAY()),12,2)","v":"2017-12-02"},"A-12345",{"v":201,"d":"201.00"},"Разход 1","Доставки"]
[{"$f":"DATE(YEAR(TODAY()),12,24)","v":"2017-12-24"},"A-12346",{"v":98,"d":"98.00"},"Разход 2"]
[null,null,{"v":342,"d":"342.00"},"Разход 2"]
[null,null,{"v":122,"d":"122.00"},"Разход 3"]
[null,null,{"v":187,"d":"187.00"},"Разход 4"]
[null,null,{"v":99,"d":"99.00"},"Разход 5"]
["Общо",null,{"$f":"SUBTOTAL(109,ExpDec[Сума])","v":{"v":1049,"d":"1,049.00"}}]